{"text_format":"1","workbook":"xlsx","n_sheets":4,"sheets":["賃金総額報告書（様式６号）末尾０用","賃金総額報告書（様式６号）末尾２用","雇用保険適用者（６号の２）","臨時・アルバイト等（６号３）"],"not_rendered":{"charts":0,"images":0,"macros":1,"external_links":0,"defined_names":3,"comments":2,"pivot_tables":0},"unopened":[],"bounds":{"document_bytes":16777216,"sheet_cells":100000,"rows_first":2000,"rows_last":500,"rows_between":2000,"halvings":0,"cell_chars":16384,"cell_head_chars":4096},"cells_cut":0,"cells_raw":0,"read":"whole","date_system":"1900"}

{"sheet":"賃金総額報告書（様式６号）末尾０用","index":0,"n_rows":50,"n_cols":56,"rows_kept":50,"cut":false,"hidden":false,"merged":[[23,14,23,18],[1,6,1,49],[9,18,9,21],[9,22,9,25],[7,22,7,25],[8,18,8,21],[8,22,8,25],[3,42,4,45],[3,46,4,49],[6,26,6,29],[6,30,6,33],[8,26,8,29],[8,30,8,33],[8,34,8,37],[9,34,9,37],[9,30,9,33],[5,6,5,9],[5,10,5,13],[9,10,9,13],[6,34,6,37],[3,34,4,37],[3,38,4,41],[9,38,9,41],[9,42,9,45],[8,55,8,58],[8,38,8,41],[8,42,8,45],[8,46,8,49],[3,54,4,58],[5,14,5,17],[5,55,5,58],[5,26,5,29],[5,30,5,33],[5,34,5,37],[5,38,5,41],[5,42,5,45],[5,46,5,49],[5,18,5,21],[5,22,5,25],[6,55,6,58],[7,55,7,58],[5,50,5,53],[6,22,6,25],[7,14,7,17],[8,14,8,17],[7,18,7,21],[3,22,4,25],[3,30,4,33],[26,2,30,5],[31,1,35,1],[31,2,35,5],[8,2,9,3],[8,4,8,5],[9,4,9,5],[11,1,15,1],[16,1,20,1],[8,6,8,9],[11,2,15,5],[16,2,20,5],[10,2,10,5],[9,55,9,58],[31,6,35,13],[31,14,35,21],[23,12,25,13],[26,6,30,13],[23,6,25,11],[21,6,22,13],[26,14,30,21],[31,22,31,33],[21,25,22,33],[33,36,35,39],[23,21,25,22],[23,25,25,31],[11,6,12,13],[13,6,15,11],[13,12,15,13],[16,6,17,13],[18,6,20,11],[18,12,20,13],[18,32,20,33],[9,6,9,9],[10,14,10,17],[9,14,9,17],[9,26,9,29],[48,4,50,8],[38,18,40,21],[38,6,40,11],[38,14,40,17],[38,32,40,33],[44,5,45,14],[38,12,40,13],[36,6,37,13],[38,22,40,31],[44,22,45,25],[44,26,45,29],[44,30,45,33],[36,22,37,33],[36,2,40,5],[49,36,51,39],[36,14,37,21],[28,32,30,33],[23,32,25,33],[24,19,25,19],[21,19,22,19],[24,14,25,16],[21,14,22,16],[24,17,25,18],[21,17,22,18],[21,20,22,20],[24,20,25,20],[16,35,27,58],[33,32,35,33],[33,22,35,31],[23,23,25,24],[33,40,35,57],[37,40,39,57],[49,40,51,57],[41,40,43,54],[37,36,39,39],[41,36,43,39],[41,55,43,56],[45,40,47,54],[45,55,47,56],[10,22,10,25],[10,30,10,33],[10,55,10,58],[10,38,10,41],[10,42,10,45],[10,46,10,49],[10,26,10,29],[10,34,10,37],[28,22,30,31],[21,21,22,24],[26,22,26,33],[10,18,10,21],[11,14,12,21],[11,22,12,33],[13,14,15,17],[13,18,15,21],[13,22,15,31],[13,32,15,33],[16,14,17,21],[16,22,17,33],[18,14,20,17],[18,18,20,21],[18,22,20,31],[45,36,47,39],[10,50,10,53],[5,1,7,1],[6,6,6,9],[6,10,6,13],[7,6,7,9],[7,10,7,13],[5,2,5,5],[6,2,6,5],[7,2,7,5],[6,38,6,41],[6,42,6,45],[6,46,6,49],[7,38,7,41],[7,42,7,45],[7,46,7,49],[7,34,7,37],[7,30,7,33],[7,26,7,29],[36,1,40,1],[21,1,25,1],[21,2,25,5],[26,1,30,1],[10,10,10,13],[3,6,4,9],[3,10,4,13],[6,18,6,21],[10,6,10,9],[4,1,4,4],[3,50,4,53],[6,50,6,53],[7,50,7,53],[8,50,8,53],[9,50,9,53],[3,14,4,17],[3,18,4,21],[6,14,6,17],[8,10,8,13],[9,1,10,1],[3,26,4,29],[9,46,9,49]]}
[]
[null,"監　　様式６号",null,null,"　　",null,"１． 賃　金　総　額　報　告　書　（令和５年度確定分）　＊末尾０用",null,null,null,null,null,null,null,null,null,null,null,null,null,null,null,null,null,null,null,null,null,null,null,null,null,null,null,null,null,null,null,null,null,null,null,null,null,null,null,null,null,null,null,null,null,"のみ入力してください"]
[]
[null,null,null,null,null," 月  別","令和５年４月",null,null,null,"令和５年５月",null,null,null,"令和５年６月",null,null,null,"令和５年７月",null,null,null,"令和５年８月",null,null,null,"令和５年９月",null,null,null,"令和５年１０月",null,null,null,"令和５年１１月",null,null,null,"令和５年１２月",null,null,null,"令和６年１月",null,null,null,"令和６年２月",null,null,null,"令和６年３月",null,null,null,"５年度計"]
[null,"項　目"]
[null,"１雇用保険適用者","賃 　金　（通勤手当含む）",null,null,null,{"$f":"'雇用保険適用者（６号の２）'!$M$48","v":0},null,null,null,{"$f":"'雇用保険適用者（６号の２）'!$N$48","v":0},null,null,null,{"$f":"'雇用保険適用者（６号の２）'!$O$48","v":0},null,null,null,{"$f":"'雇用保険適用者（６号の２）'!$P$48","v":0},null,null,null,{"$f":"'雇用保険適用者（６号の２）'!$Q$48","v":0},null,null,null,{"$f":"'雇用保険適用者（６号の２）'!$R$48","v":0},null,null,null,{"$f":"'雇用保険適用者（６号の２）'!$S$48","v":0},null,null,null,{"$f":"'雇用保険適用者（６号の２）'!$T$48","v":0},null,null,null,{"$f":"'雇用保険適用者（６号の２）'!$U$48","v":0},null,null,null,{"$f":"'雇用保険適用者（６号の２）'!$V$48","v":0},null,null,null,{"$f":"'雇用保険適用者（６号の２）'!$W$48","v":0},null,null,null,{"$f":"'雇用保険適用者（６号の２）'!$X$48","v":0},null,null,null,null,{"$f":"SUM(G6:AY6)","v":0}]
[null,null,"賞  与 ・ 燃料手当等",null,null,null,{"$f":"'雇用保険適用者（６号の２）'!$M$49","v":0},null,null,null,{"$f":"'雇用保険適用者（６号の２）'!$N$49","v":0},null,null,null,{"$f":"'雇用保険適用者（６号の２）'!$O$49","v":0},null,null,null,{"$f":"'雇用保険適用者（６号の２）'!$P$49","v":0},null,null,null,{"$f":"'雇用保険適用者（６号の２）'!$Q$49","v":0},null,null,null,{"$f":"'雇用保険適用者（６号の２）'!$R$49","v":0},null,null,null,{"$f":"'雇用保険適用者（６号の２）'!$S$49","v":0},null,null,null,{"$f":"'雇用保険適用者（６号の２）'!$T$49","v":0},null,null,null,{"$f":"'雇用保険適用者（６号の２）'!$U$49","v":0},null,null,null,{"$f":"'雇用保険適用者（６号の２）'!$V$49","v":0},null,null,null,{"$f":"'雇用保険適用者（６号の２）'!$W$49","v":0},null,null,null,{"$f":"'雇用保険適用者（６号の２）'!$X$49","v":0},null,null,null,null,0]
[null,null,"合　　　　　　計",null,null,null,{"$f":"SUM(G6:J7)","v":0},null,null,null,{"$f":"SUM(K6:N7)","v":0},null,null,null,{"$f":"SUM(O6:R7)","v":0},null,null,null,{"$f":"SUM(S6:V7)","v":0},null,null,null,{"$f":"SUM(W6:Z7)","v":0},null,null,null,{"$f":"SUM(AA6:AD7)","v":0},null,null,null,{"$f":"SUM(AE6:AH7)","v":0},null,null,null,{"$f":"SUM(AI6:AL7)","v":0},null,null,null,{"$f":"SUM(AM6:AP7)","v":0},null,null,null,{"$f":"SUM(AQ6:AT7)","v":0},null,null,null,{"$f":"SUM(AU6:AX7)","v":0},null,null,null,{"$f":"SUM(AY6:BB7)","v":0},null,null,null,"①",0]
[null,"２　　　　","臨時・アルバイト等",null,"賃　金  （通勤手当含む）",null,{"$f":"'臨時・アルバイト等（６号３）'!$I$48","v":0},null,null,null,{"$f":"'臨時・アルバイト等（６号３）'!$J$48","v":0},null,null,null,{"$f":"'臨時・アルバイト等（６号３）'!$K$48","v":0},null,null,null,{"$f":"'臨時・アルバイト等（６号３）'!$L$48","v":0},null,null,null,{"$f":"'臨時・アルバイト等（６号３）'!$M$48","v":0},null,null,null,{"$f":"'臨時・アルバイト等（６号３）'!$N$48","v":0},null,null,null,{"$f":"'臨時・アルバイト等（６号３）'!$O$48","v":0},null,null,null,{"$f":"'臨時・アルバイト等（６号３）'!$P$48","v":0},null,null,null,{"$f":"'臨時・アルバイト等（６号３）'!$Q$48","v":0},null,null,null,{"$f":"'臨時・アルバイト等（６号３）'!$R$48","v":0},null,null,null,{"$f":"'臨時・アルバイト等（６号３）'!$S$48","v":0},null,null,null,{"$f":"'臨時・アルバイト等（６号３）'!$T$48","v":0},null,null,null,null,0]
[null,"上記１以外の者　　　　　",null,null,"賞  与 ・ 燃料手当等",null,{"$f":"'臨時・アルバイト等（６号３）'!$I$49","v":0},null,null,null,{"$f":"'臨時・アルバイト等（６号３）'!$J$49","v":0},null,null,null,{"$f":"'臨時・アルバイト等（６号３）'!$K$49","v":0},null,null,null,{"$f":"'臨時・アルバイト等（６号３）'!$L$49","v":0},null,null,null,{"$f":"'臨時・アルバイト等（６号３）'!$M$49","v":0},null,null,null,{"$f":"'臨時・アルバイト等（６号３）'!$N$49","v":0},null,null,null,{"$f":"'臨時・アルバイト等（６号３）'!$O$49","v":0},null,null,null,{"$f":"'臨時・アルバイト等（６号３）'!$P$49","v":0},null,null,null,{"$f":"'臨時・アルバイト等（６号３）'!$Q$49","v":0},null,null,null,{"$f":"'臨時・アルバイト等（６号３）'!$R$49","v":0},null,null,null,{"$f":"'臨時・アルバイト等（６号３）'!$S$49","v":0},null,null,null,{"$f":"'臨時・アルバイト等（６号３）'!$T$49","v":0},null,null,null,null,0]
[null,null,"合　　　　　　計",null,null,null,{"$f":"SUM(G9:J10)","v":0},null,null,null,{"$f":"SUM(K9:N10)","v":0},null,null,null,{"$f":"SUM(O9:R10)","v":0},null,null,null,{"$f":"SUM(S9:V10)","v":0},null,null,null,{"$f":"SUM(W9:Z10)","v":0},null,null,null,{"$f":"SUM(AA9:AD10)","v":0},null,null,null,{"$f":"SUM(AE9:AH10)","v":0},null,null,null,{"$f":"SUM(AI9:AL10)","v":0},null,null,null,{"$f":"SUM(AM9:AP10)","v":0},null,null,null,{"$f":"SUM(AQ9:AT10)","v":0},null,null,null,{"$f":"SUM(AU9:AX10)","v":0},null,null,null,{"$f":"SUM(AY9:BB10)","v":0},null,null,null,"②",0]
[null,"３","雇用保険対象賃金",null,null,null,"①の額　＊千円未満端数切捨",null,null,null,null,null,null,null,"料率　　　　　　　　　↓から選択",null,null,null,null,null,null,null,"雇用保険料　＊端数切捨"]
[]
[null,null,null,null,null,null,{"$f":"ROUNDDOWN($BD$8/1000,0)","v":0},null,null,null,null,null,"千円",null,15.5,null,null,null,"/1,000",null,null,null,{"$f":"ROUNDDOWN(G14*O14,0)","v":0},null,null,null,null,null,null,null,null,null,"円"]
[]
[]
[null,"４","労災保険対象賃金",null,null,null,"①＋②の額　＊千円未満端数切捨",null,null,null,null,null,null,null,"料率",null,null,null,null,null,null,null,"労災分保険料　＊端数切捨",null,null,null,null,null,null,null,null,null,null,null,null,"【注意】\n　１　作成にあたっては、まず最初に別表２及び３（賃金支払集計表）に入力してください。\n　　　本書は別表２及び３から転記されますので、黄色部分のみ入力してください。\n\n　２　令和元年度までは６４歳以上の労働者は雇用保険料が免除されて\n　　いましたが、令和２年度からは免除の対象となりませんのでご注意\n　　ください。"]
[]
[null,null,null,null,null,null,{"$f":"ROUNDDOWN(SUM(BD8+BD11)/1000,0)","v":0},null,null,null,null,null,"千円",null,null,null,null,null,"/1,000",null,null,null,{"$f":"ROUNDDOWN(G19*O19,0)","v":0},null,null,null,null,null,null,null,null,null,"円"]
[]
[]
[null,"５","特別加入の賃金額",null,null,null,null,null,null,null,null,null,null,null,null,null,null,"円×",null,null,"人","料率",null,null,null,"労災分保険料"]
[]
[null,null,null,null,null,null,null,null,null,null,null,null,"千円",null,"（給付基礎日額）",null,null,null,null,null,null,{"$f":"O19","v":0},null,"/1,000",null,{"$f":"ROUNDDOWN(G24*V24,0)","v":0},null,null,null,null,null,null,"円"]
[null,null,null,null,null,null,null,null,null,null,null,null,null,null,null,null,null,"円×",null,null,"人"]
[]
[null,"６","労災分保険料合計（４＋５）"]
[]
[null,null,null,null,null,null,null,null,null,null,null,null,null,null,null,null,null,null,null,null,null,null,{"$f":"SUM(W19+Z24)","v":0},null,null,null,null,null,null,null,null,null,"円"]
[]
[]
[null,"７","労働保険料 計（３＋６）"]
[]
[null,null,null,null,null,null,null,null,null,null,null,null,null,null,null,null,null,null,null,null,null,null,{"$f":"SUM(W14+W29)","v":0},null,null,null,null,null,null,null,null,null,"円",null,null,null,"事業所名称"]
[]
[]
[null,"８","一般拠出金対象賃金",null,null,null,"①＋②の額",null,null,null,null,null,null,null,"料率",null,null,null,null,null,null,null,"一般拠出金"]
[null,null,null,null,null,null,null,null,null,null,null,null,null,null,null,null,null,null,null,null,null,null,null,null,null,null,null,null,null,null,null,null,null,null,null,null,"事業所所在地"]
[null,null,null,null,null,null,{"$f":"ROUNDDOWN(SUM(BD8+BD11)/1000,0)","v":0},null,null,null,null,null,"千円",null,0.02,null,null,null,"/1,000",null,null,null,{"$f":"ROUNDDOWN(G39*O39,0)","v":0},null,null,null,null,null,null,null,null,null,"円"]
[]
[]
[null,null,null,null,null,null,null,null,null,null,null,null,null,null,null,null,null,null,null,null,null,null,null,null,null,null,null,null,null,null,null,null,null,null,null,null,"代表者職氏名　　　　　　　　　　　　　　　　　　　　　　　　　　　　　　　　　　　　㊞"]
[]
[]
[null,null,null,null,null,"上記のとおり相違ありません。",null,null,null,null,null,null,null,null,null,null,null,null,null,null,null,null,"令和６年"]
[null,null,null,null,null,null,null,null,null,null,null,null,null,null,null,null,null,null,null,null,null,null,null,null,null,null,null,null,null,null,null,null,null,null,null,null,"作成者氏名"]
[]
[]
[null,null,null,null,"北海道労働局長　　　殿"]
[null,null,null,null,null,null,null,null,null,null,null,null,null,null,null,null,null,null,null,null,null,null,null,null,null,null,null,null,null,null,null,null,null,null,null,null,"電話番号"]

{"sheet":"賃金総額報告書（様式６号）末尾２用","index":1,"n_rows":50,"n_cols":56,"rows_kept":50,"cut":false,"hidden":false,"merged":[[1,6,1,49],[9,18,9,21],[9,22,9,25],[7,22,7,25],[8,18,8,21],[8,22,8,25],[3,42,4,45],[3,46,4,49],[5,22,5,25],[3,34,4,37],[3,38,4,41],[9,38,9,41],[9,42,9,45],[9,46,9,49],[8,26,8,29],[8,30,8,33],[8,34,8,37],[9,34,9,37],[9,30,9,33],[6,55,6,58],[7,55,7,58],[5,50,5,53],[6,22,6,25],[7,14,7,17],[7,18,7,21],[6,26,6,29],[6,30,6,33],[3,54,4,58],[5,14,5,17],[5,55,5,58],[5,26,5,29],[5,30,5,33],[5,34,5,37],[5,38,5,41],[5,42,5,45],[5,46,5,49],[5,18,5,21],[6,46,6,49],[7,38,7,41],[7,42,7,45],[7,46,7,49],[7,34,7,37],[7,30,7,33],[13,14,15,17],[13,18,15,21],[13,22,15,31],[13,32,15,33],[10,42,10,45],[10,46,10,49],[10,26,10,29],[10,34,10,37],[10,18,10,21],[11,14,12,21],[11,22,12,33],[10,2,10,5],[8,55,8,58],[8,38,8,41],[8,42,8,45],[8,46,8,49],[8,14,8,17],[10,14,10,17],[9,14,9,17],[9,26,9,29],[9,55,9,58],[9,10,9,13],[8,2,9,3],[8,4,8,5],[9,4,9,5],[11,1,15,1],[33,36,35,39],[23,21,25,22],[23,25,25,31],[11,6,12,13],[13,6,15,11],[13,12,15,13],[16,6,17,13],[18,6,20,11],[18,12,20,13],[18,32,20,33],[31,6,35,13],[31,14,35,21],[23,12,25,13],[26,6,30,13],[23,6,25,11],[21,6,22,13],[26,14,30,21],[16,1,20,1],[11,2,15,5],[16,2,20,5],[48,4,50,8],[38,18,40,21],[38,6,40,11],[38,14,40,17],[38,32,40,33],[44,5,45,14],[38,12,40,13],[36,2,40,5],[33,32,35,33],[33,22,35,31],[36,6,37,13],[38,22,40,31],[44,22,45,25],[44,26,45,29],[44,30,45,33],[36,22,37,33],[31,2,35,5],[49,40,51,57],[41,40,43,54],[37,36,39,39],[41,36,43,39],[41,55,43,56],[21,14,22,16],[24,17,25,18],[21,17,22,18],[21,20,22,20],[24,20,25,20],[16,35,27,58],[18,14,20,17],[18,18,20,21],[18,22,20,31],[49,36,51,39],[36,14,37,21],[28,32,30,33],[23,32,25,33],[24,19,25,19],[21,19,22,19],[24,14,25,16],[16,14,17,21],[16,22,17,33],[28,22,30,31],[36,1,40,1],[21,1,25,1],[21,2,25,5],[26,1,30,1],[10,10,10,13],[45,55,47,56],[10,22,10,25],[10,30,10,33],[10,55,10,58],[10,38,10,41],[45,36,47,39],[10,50,10,53],[10,6,10,9],[9,1,10,1],[31,22,31,33],[21,25,22,33],[45,40,47,54],[23,23,25,24],[33,40,35,57],[37,40,39,57],[21,21,22,24],[26,22,26,33],[26,2,30,5],[31,1,35,1],[5,1,7,1],[6,6,6,9],[6,10,6,13],[7,6,7,9],[7,10,7,13],[5,2,5,5],[6,2,6,5],[7,2,7,5],[3,50,4,53],[6,50,6,53],[7,50,7,53],[4,1,4,4],[5,6,5,9],[5,10,5,13],[6,34,6,37],[3,22,4,25],[3,26,4,29],[8,50,8,53],[9,50,9,53],[3,14,4,17],[3,18,4,21],[6,14,6,17],[6,38,6,41],[6,42,6,45],[3,30,4,33],[3,6,4,9],[3,10,4,13],[6,18,6,21],[8,10,8,13],[7,26,7,29],[9,6,9,9],[8,6,8,9]]}
[]
[null,"監　　様式６号",null,null,"　　",null,"１． 賃　金　総　額　報　告　書　（令和５年度確定分）　＊末尾２用",null,null,null,null,null,null,null,null,null,null,null,null,null,null,null,null,null,null,null,null,null,null,null,null,null,null,null,null,null,null,null,null,null,null,null,null,null,null,null,null,null,null,null,null,null,"のみ入力してください"]
[]
[null,null,null,null,null," 月  別","令和５年４月",null,null,null,"令和５年５月",null,null,null,"令和５年６月",null,null,null,"令和５年７月",null,null,null,"令和５年８月",null,null,null,"令和５年９月",null,null,null,"令和５年１０月",null,null,null,"令和５年１１月",null,null,null,"令和５年１２月",null,null,null,"令和６年１月",null,null,null,"令和６年２月",null,null,null,"令和６年３月",null,null,null,"５年度計"]
[null,"項　目"]
[null,"１雇用保険適用者","賃 　金　（通勤手当含む）",null,null,null,{"$f":"'雇用保険適用者（６号の２）'!$M$48","v":0},null,null,null,{"$f":"'雇用保険適用者（６号の２）'!$N$48","v":0},null,null,null,{"$f":"'雇用保険適用者（６号の２）'!$O$48","v":0},null,null,null,{"$f":"'雇用保険適用者（６号の２）'!$P$48","v":0},null,null,null,{"$f":"'雇用保険適用者（６号の２）'!$Q$48","v":0},null,null,null,{"$f":"'雇用保険適用者（６号の２）'!$R$48","v":0},null,null,null,{"$f":"'雇用保険適用者（６号の２）'!$S$48","v":0},null,null,null,{"$f":"'雇用保険適用者（６号の２）'!$T$48","v":0},null,null,null,{"$f":"'雇用保険適用者（６号の２）'!$U$48","v":0},null,null,null,{"$f":"'雇用保険適用者（６号の２）'!$V$48","v":0},null,null,null,{"$f":"'雇用保険適用者（６号の２）'!$W$48","v":0},null,null,null,{"$f":"'雇用保険適用者（６号の２）'!$X$48","v":0},null,null,null,null,{"$f":"SUM(G6:AY6)","v":0}]
[null,null,"賞  与 ・ 燃料手当等",null,null,null,{"$f":"'雇用保険適用者（６号の２）'!$M$49","v":0},null,null,null,{"$f":"'雇用保険適用者（６号の２）'!$N$49","v":0},null,null,null,{"$f":"'雇用保険適用者（６号の２）'!$O$49","v":0},null,null,null,{"$f":"'雇用保険適用者（６号の２）'!$P$49","v":0},null,null,null,{"$f":"'雇用保険適用者（６号の２）'!$Q$49","v":0},null,null,null,{"$f":"'雇用保険適用者（６号の２）'!$R$49","v":0},null,null,null,{"$f":"'雇用保険適用者（６号の２）'!$S$49","v":0},null,null,null,{"$f":"'雇用保険適用者（６号の２）'!$T$49","v":0},null,null,null,{"$f":"'雇用保険適用者（６号の２）'!$U$49","v":0},null,null,null,{"$f":"'雇用保険適用者（６号の２）'!$V$49","v":0},null,null,null,{"$f":"'雇用保険適用者（６号の２）'!$W$49","v":0},null,null,null,{"$f":"'雇用保険適用者（６号の２）'!$X$49","v":0},null,null,null,null,0]
[null,null,"合　　　　　　計",null,null,null,{"$f":"SUM(G6:J7)","v":0},null,null,null,{"$f":"SUM(K6:N7)","v":0},null,null,null,{"$f":"SUM(O6:R7)","v":0},null,null,null,{"$f":"SUM(S6:V7)","v":0},null,null,null,{"$f":"SUM(W6:Z7)","v":0},null,null,null,{"$f":"SUM(AA6:AD7)","v":0},null,null,null,{"$f":"SUM(AE6:AH7)","v":0},null,null,null,{"$f":"SUM(AI6:AL7)","v":0},null,null,null,{"$f":"SUM(AM6:AP7)","v":0},null,null,null,{"$f":"SUM(AQ6:AT7)","v":0},null,null,null,{"$f":"SUM(AU6:AX7)","v":0},null,null,null,{"$f":"SUM(AY6:BB7)","v":0},null,null,null,"①",0]
[null,"２　　　　","臨時・アルバイト等",null,"賃　金  （通勤手当含む）",null,{"$f":"'臨時・アルバイト等（６号３）'!$I$48","v":0},null,null,null,{"$f":"'臨時・アルバイト等（６号３）'!$J$48","v":0},null,null,null,{"$f":"'臨時・アルバイト等（６号３）'!$K$48","v":0},null,null,null,{"$f":"'臨時・アルバイト等（６号３）'!$L$48","v":0},null,null,null,{"$f":"'臨時・アルバイト等（６号３）'!$M$48","v":0},null,null,null,{"$f":"'臨時・アルバイト等（６号３）'!$N$48","v":0},null,null,null,{"$f":"'臨時・アルバイト等（６号３）'!$O$48","v":0},null,null,null,{"$f":"'臨時・アルバイト等（６号３）'!$P$48","v":0},null,null,null,{"$f":"'臨時・アルバイト等（６号３）'!$Q$48","v":0},null,null,null,{"$f":"'臨時・アルバイト等（６号３）'!$R$48","v":0},null,null,null,{"$f":"'臨時・アルバイト等（６号３）'!$S$48","v":0},null,null,null,{"$f":"'臨時・アルバイト等（６号３）'!$T$48","v":0},null,null,null,null,0]
[null,"上記１以外の者　　　　　",null,null,"賞  与 ・ 燃料手当等",null,{"$f":"'臨時・アルバイト等（６号３）'!$I$49","v":0},null,null,null,{"$f":"'臨時・アルバイト等（６号３）'!$J$49","v":0},null,null,null,{"$f":"'臨時・アルバイト等（６号３）'!$K$49","v":0},null,null,null,{"$f":"'臨時・アルバイト等（６号３）'!$L$49","v":0},null,null,null,{"$f":"'臨時・アルバイト等（６号３）'!$M$49","v":0},null,null,null,{"$f":"'臨時・アルバイト等（６号３）'!$N$49","v":0},null,null,null,{"$f":"'臨時・アルバイト等（６号３）'!$O$49","v":0},null,null,null,{"$f":"'臨時・アルバイト等（６号３）'!$P$49","v":0},null,null,null,{"$f":"'臨時・アルバイト等（６号３）'!$Q$49","v":0},null,null,null,{"$f":"'臨時・アルバイト等（６号３）'!$R$49","v":0},null,null,null,{"$f":"'臨時・アルバイト等（６号３）'!$S$49","v":0},null,null,null,{"$f":"'臨時・アルバイト等（６号３）'!$T$49","v":0},null,null,null,null,0]
[null,null,"合　　　　　　計",null,null,null,{"$f":"SUM(G9:J10)","v":0},null,null,null,{"$f":"SUM(K9:N10)","v":0},null,null,null,{"$f":"SUM(O9:R10)","v":0},null,null,null,{"$f":"SUM(S9:V10)","v":0},null,null,null,{"$f":"SUM(W9:Z10)","v":0},null,null,null,{"$f":"SUM(AA9:AD10)","v":0},null,null,null,{"$f":"SUM(AE9:AH10)","v":0},null,null,null,{"$f":"SUM(AI9:AL10)","v":0},null,null,null,{"$f":"SUM(AM9:AP10)","v":0},null,null,null,{"$f":"SUM(AQ9:AT10)","v":0},null,null,null,{"$f":"SUM(AU9:AX10)","v":0},null,null,null,{"$f":"SUM(AY9:BB10)","v":0},null,null,null,"②",0]
[null,"３","雇用保険対象賃金",null,null,null,"①の額　＊千円未満端数切捨",null,null,null,null,null,null,null,"料率　　　　　　　　　↓から選択",null,null,null,null,null,null,null,"雇用保険料　＊端数切捨"]
[]
[null,null,null,null,null,null,{"$f":"ROUNDDOWN($BD$8/1000,0)","v":0},null,null,null,null,null,"千円",null,15.5,null,null,null,"/1,000",null,null,null,{"$f":"ROUNDDOWN(G14*O14,0)","v":0},null,null,null,null,null,null,null,null,null,"円"]
[]
[]
[null,"４","労災保険対象賃金",null,null,null,"①＋②の額　＊千円未満端数切捨",null,null,null,null,null,null,null,"料率",null,null,null,null,null,null,null,"労災分保険料　＊端数切捨て",null,null,null,null,null,null,null,null,null,null,null,null,"【注意】\n　１　作成にあたっては、まず最初に別表２及び３（賃金支払集計表）に入力してください。\n　　　本書は別表２及び３から転記されますので、黄色部分のみ入力してください。\n\n　２　令和元年度までは６４歳以上の労働者は雇用保険料が免除されて\n　　いましたが、令和２年度からは免除の対象となりませんのでご注意\n　　ください。"]
[]
[null,null,null,null,null,null,null,null,null,null,null,null,"千円",null,null,null,null,null,"/1,000",null,null,null,null,null,null,null,null,null,null,null,null,null,"円"]
[]
[]
[null,"５","特別加入の賃金額",null,null,null,null,null,null,null,null,null,null,null,null,null,null,"円×",null,null,"人","料率",null,null,null,"労災分保険料"]
[]
[null,null,null,null,null,null,null,null,null,null,null,null,"千円",null,null,null,null,null,null,null,null,null,null,"/1,000",null,null,null,null,null,null,null,null,"円"]
[null,null,null,null,null,null,null,null,null,null,null,null,null,null,null,null,null,"円×",null,null,"人"]
[]
[null,"６","労災分保険料合計（４＋５）"]
[]
[null,null,null,null,null,null,null,null,null,null,null,null,null,null,null,null,null,null,null,null,null,null,null,null,null,null,null,null,null,null,null,null,"円"]
[]
[]
[null,"７","労働保険料 計（３＋６）"]
[]
[null,null,null,null,null,null,null,null,null,null,null,null,null,null,null,null,null,null,null,null,null,null,{"$f":"W14","v":0},null,null,null,null,null,null,null,null,null,"円",null,null,null,"事業所名称"]
[]
[]
[null,"８","一般拠出金対象賃金",null,null,null,"①＋②の額",null,null,null,null,null,null,null,"料率",null,null,null,null,null,null,null,"一般拠出金"]
[null,null,null,null,null,null,null,null,null,null,null,null,null,null,null,null,null,null,null,null,null,null,null,null,null,null,null,null,null,null,null,null,null,null,null,null,"事業所所在地"]
[null,null,null,null,null,null,null,null,null,null,null,null,"千円",null,0.02,null,null,null,"/1,000",null,null,null,null,null,null,null,null,null,null,null,null,null,"円"]
[]
[]
[null,null,null,null,null,null,null,null,null,null,null,null,null,null,null,null,null,null,null,null,null,null,null,null,null,null,null,null,null,null,null,null,null,null,null,null,"代表者職氏名　　　　　　　　　　　　　　　　　　　　　　　　　　　　　　　　　　　　㊞"]
[]
[]
[null,null,null,null,null,"上記のとおり相違ありません。",null,null,null,null,null,null,null,null,null,null,null,null,null,null,null,null,"令和６年"]
[null,null,null,null,null,null,null,null,null,null,null,null,null,null,null,null,null,null,null,null,null,null,null,null,null,null,null,null,null,null,null,null,null,null,null,null,"作成者氏名"]
[]
[]
[null,null,null,null,"北海道労働局長　　　殿"]
[null,null,null,null,null,null,null,null,null,null,null,null,null,null,null,null,null,null,null,null,null,null,null,null,null,null,null,null,null,null,null,null,null,null,null,null,"電話番号"]

{"sheet":"雇用保険適用者（６号の２）","index":2,"n_rows":56,"n_cols":26,"rows_kept":56,"cut":false,"hidden":false,"merged":[[45,9,46,11],[55,7,55,21],[47,1,48,11],[0,1,0,5],[0,10,0,20],[1,10,1,20],[45,1,46,2],[45,3,46,5],[45,6,46,8],[43,9,44,11],[37,9,38,11],[37,1,38,2],[37,3,38,5],[37,6,38,8],[43,1,44,2],[43,3,44,5],[43,6,44,8],[41,9,42,11],[41,1,42,2],[41,3,42,5],[41,6,42,8],[39,9,40,11],[39,1,40,2],[39,3,40,5],[39,6,40,8],[4,17,6,17],[7,1,8,2],[4,13,6,13],[7,3,8,5],[7,6,8,8],[7,9,8,11],[4,4,6,4],[4,12,6,12],[4,14,6,14],[4,15,6,15],[4,16,6,16],[4,1,6,2],[27,6,28,8],[17,1,18,2],[17,3,18,5],[19,9,20,11],[17,6,18,8],[23,1,24,2],[9,1,10,2],[11,1,12,2],[9,6,10,8],[15,1,16,2],[15,3,16,5],[4,25,6,25],[4,18,6,18],[4,19,6,19],[4,20,6,20],[4,21,6,21],[4,24,6,24],[25,1,26,2],[25,3,26,5],[4,23,6,23],[11,3,12,5],[23,9,24,11],[19,1,20,2],[19,3,20,5],[21,6,22,8],[23,3,24,5],[23,6,24,8],[13,3,14,5],[13,6,14,8],[13,9,14,11],[11,6,12,8],[11,9,12,11],[9,9,10,11],[9,3,10,5],[15,6,16,8],[29,1,30,2],[29,3,30,5],[29,6,30,8],[31,1,32,2],[31,3,32,5],[31,6,32,8],[29,9,30,11],[17,9,18,11],[25,6,26,8],[33,9,34,11],[35,1,36,2],[35,3,36,5],[35,6,36,8],[35,9,36,11],[33,1,34,2],[33,3,34,5],[33,6,34,8],[31,9,32,11],[13,1,14,2],[27,1,28,2],[27,3,28,5],[27,9,28,11],[19,6,20,8],[21,1,22,2],[21,3,22,5],[4,22,6,22],[21,9,22,11],[15,9,16,11],[4,7,6,7],[4,10,6,10],[25,9,26,11]]}
[null,"監　様式６号の２　（別表２）",null,null,null,null,null,null,null,null,"２．　賃　金　支　払　集　計　表"]
[null,null,null,null,null,null,null,null,null,null,"　　　（雇用保険適用者）"]
[]
[]
[null,"氏名",null,null,"生年月日",null,null,"被保険者\n資格取得\n年月日",null,null,"被保険者\n離職\n年月日",null,"令和５年４月","令和５年５月","令和５年６月","令和５年７月","令和５年８月","令和５年９月","令和５年１０月","令和５年１１月","令和５年１２月","令和６年１月","令和６年２月","令和６年３月","４年度計","５年度計"]
[]
[" "]
[null,null,null,null,null,null,null,null,null,null,null,null,null,null,null,null,null,null,null,null,null,null,null,null,{"$f":"SUM(M8:X8)","v":0},{"$f":"SUM(M8:X8)","v":0}]
[null,null,null,null,null,null,null,null,null,null,null,null,null,null,null,null,null,null,null,null,null,null,null,null,{"$f":"SUM(M9:X9)","v":0},{"$f":"SUM(M9:X9)","v":0}]
[null,null,null,null,null,null,null,null,null,null,null,null,null,null,null,null,null,null,null,null,null,null,null,null,0,0]
[null,null,null,null,null,null,null,null,null,null,null,null,null,null,null,null,null,null,null,null,null,null,null,null,0,0]
[null,null,null,null,null,null,null,null,null,null,null,null,null,null,null,null,null,null,null,null,null,null,null,null,{"$f":"SUM(M12:X12)","v":0},0]
[null,null,null,null,null,null,null,null,null,null,null,null,null,null,null,null,null,null,null,null,null,null,null,null,0,0]
[null,null,null,null,null,null,null,null,null,null,null,null,null,null,null,null,null,null,null,null,null,null,null,null,0,0]
[null,null,null,null,null,null,null,null,null,null,null,null,null,null,null,null,null,null,null,null,null,null,null,null,0,0]
[null,null,null,null,null,null,null,null,null,null,null,null,null,null,null,null,null,null,null,null,null,null,null,null,0,0]
[null,null,null,null,null,null,null,null,null,null,null,null,null,null,null,null,null,null,null,null,null,null,null,null,0,0]
[null,null,null,null,null,null,null,null,null,null,null,null,null,null,null,null,null,null,null,null,null,null,null,null,0,0]
[null,null,null,null,null,null,null,null,null,null,null,null,null,null,null,null,null,null,null,null,null,null,null,null,0,0]
[null,null,null,null,null,null,null,null,null,null,null,null,null,null,null,null,null,null,null,null,null,null,null,null,0,0]
[null,null,null,null,null,null,null,null,null,null,null,null,null,null,null,null,null,null,null,null,null,null,null,null,0,0]
[null,null,null,null,null,null,null,null,null,null,null,null,null,null,null,null,null,null,null,null,null,null,null,null,0,0]
[null,null,null,null,null,null,null,null,null,null,null,null,null,null,null,null,null,null,null,null,null,null,null,null,0,0]
[null,null,null,null,null,null,null,null,null,null,null,null,null,null,null,null,null,null,null,null,null,null,null,null,0,0]
[null,null,null,null,null,null,null,null,null,null,null,null,null,null,null,null,null,null,null,null,null,null,null,null,0,0]
[null,null,null,null,null,null,null,null,null,null,null,null,null,null,null,null,null,null,null,null,null,null,null,null,0,0]
[null,null,null,null,null,null,null,null,null,null,null,null,null,null,null,null,null,null,null,null,null,null,null,null,0,0]
[null,null,null,null,null,null,null,null,null,null,null,null,null,null,null,null,null,null,null,null,null,null,null,null,0,0]
[null,null,null,null,null,null,null,null,null,null,null,null,null,null,null,null,null,null,null,null,null,null,null,null,0,0]
[null,null,null,null,null,null,null,null,null,null,null,null,null,null,null,null,null,null,null,null,null,null,null,null,0,0]
[null,null,null,null,null,null,null,null,null,null,null,null,null,null,null,null,null,null,null,null,null,null,null,null,0,0]
[null,null,null,null,null,null,null,null,null,null,null,null,null,null,null,null,null,null,null,null,null,null,null,null,0,0]
[null,null,null,null,null,null,null,null,null,null,null,null,null,null,null,null,null,null,null,null,null,null,null,null,0,0]
[null,null,null,null,null,null,null,null,null,null,null,null,null,null,null,null,null,null,null,null,null,null,null,null,0,0]
[null,null,null,null,null,null,null,null,null,null,null,null,null,null,null,null,null,null,null,null,null,null,null,null,0,0]
[null,null,null,null,null,null,null,null,null,null,null,null,null,null,null,null,null,null,null,null,null,null,null,null,0,0]
[null,null,null,null,null,null,null,null,null,null,null,null,null,null,null,null,null,null,null,null,null,null,null,null,0,0]
[null,null,null,null,null,null,null,null,null,null,null,null,null,null,null,null,null,null,null,null,null,null,null,null,0,0]
[null,null,null,null,null,null,null,null,null,null,null,null,null,null,null,null,null,null,null,null,null,null,null,null,0,0]
[null,null,null,null,null,null,null,null,null,null,null,null,null,null,null,null,null,null,null,null,null,null,null,null,0,0]
[null,null,null,null,null,null,null,null,null,null,null,null,null,null,null,null,null,null,null,null,null,null,null,null,0,0]
[null,null,null,null,null,null,null,null,null,null,null,null,null,null,null,null,null,null,null,null,null,null,null,null,0,0]
[null,null,null,null,null,null,null,null,null,null,null,null,null,null,null,null,null,null,null,null,null,null,null,null,0,0]
[null,null,null,null,null,null,null,null,null,null,null,null,null,null,null,null,null,null,null,null,null,null,null,null,0,0]
[null,null,null,null,null,null,null,null,null,null,null,null,null,null,null,null,null,null,null,null,null,null,null,null,0,0]
[null,null,null,null,null,null,null,null,null,null,null,null,null,null,null,null,null,null,null,null,null,null,null,null,0,0]
[null,null,null,null,null,null,null,null,null,null,null,null,null,null,null,null,null,null,null,null,null,null,null,null,0,0]
[null,"計",null,null,null,null,null,null,null,null,null,null,{"$f":"SUM(M8+M10+M12+M14+M16+M18+M20+M22+M24+M26+M28+M30+M32+M34+M36+M38+M40+M42+M44+M46)","v":0},{"$f":"SUM(N8+N10+N12+N14+N16+N18+N20+N22+N24+N26+N28+N30+N32+N34+N36+N38+N40+N42+N44+N46)","v":0},{"$f":"SUM(O8+O10+O12+O14+O16+O18+O20+O22+O24+O26+O28+O30+O32+O34+O36+O38+O40+O42+O44+O46)","v":0},{"$f":"SUM(P8+P10+P12+P14+P16+P18+P20+P22+P24+P26+P28+P30+P32+P34+P36+P38+P40+P42+P44+P46)","v":0},0,0,0,0,0,0,0,0,0,0]
[null,null,null,null,null,null,null,null,null,null,null,null,{"$f":"SUM(M9+M11+M13+M15+M17+M19+M21+M23+M25+M27+M29+M31+M33+M35+M37+M39+M41+M43+M45+M47)","v":0},{"$f":"SUM(N9+N11+N13+N15+N17+N19+N21+N23+N25+N27+N29+N31+N33+N35+N37+N39+N41+N43+N45+N47)","v":0},0,0,0,0,0,0,0,0,0,0,0,0]
[]
[null,null,"１　この表は、雇用保険被保険者であるすべての労働者（役員を含む）について、賃金台帳に基づいて作成してください。"]
[null,null,"２　賃金額は、超過勤務手当、通勤手当等を含む賃金総額（源泉所得税、社会保険料、雇用保険料等を控除する前の金額）を記載してください。"]
[null,null,"３　各月の賃金額は、原則として支払内容月で作成してください。"]
[null,null,"４　雇用保険に係る取得・離職年月日は届出書類と照合の上、正確に記載してください。"]
[null,null,"５　賞与、燃料手当、臨時手当などの手当を支給した場合は、該当月欄の上段に賃金額を、下段に賞与等の額を記入してください。（二段書きしてください。）　　　",null,null,null,null,null,null,null,null,null,null,null,null,null,null,null,null,null,null,null,"　　記載例　　","３５０，０００　←　賃金額"]
[null,null,null,null,null,null,null,"　　　　　　　　　　　　　　　　　　　　　　　　　　　　　　　　　　　　　　　　　　　　　　　　　　　　　　　　　　　　　　　　　　　　　　　　　　　　　　　　　　　　　　　　　　　　　　　　　　　　　　　　　　　",null,null,null,null,null,null,null,null,null,null,null,null,null,null,null,"２００，０００　←　賞与等"]

{"sheet":"臨時・アルバイト等（６号３）","index":3,"n_rows":55,"n_cols":21,"rows_kept":55,"cut":false,"hidden":false,"merged":[[45,6,46,6],[45,7,46,7],[53,2,53,17],[47,1,48,7],[45,1,46,2],[45,3,46,3],[45,4,46,4],[45,5,46,5],[37,7,38,7],[39,6,40,6],[39,7,40,7],[41,6,42,6],[41,7,42,7],[43,6,44,6],[43,7,44,7],[41,1,42,2],[41,3,42,3],[43,1,44,2],[43,3,44,3],[43,4,44,4],[43,5,44,5],[41,4,42,4],[41,5,42,5],[39,1,40,2],[39,3,40,3],[39,4,40,4],[39,5,40,5],[37,1,38,2],[37,3,38,3],[37,4,38,4],[37,5,38,5],[37,6,38,6],[29,7,30,7],[31,6,32,6],[31,7,32,7],[33,6,34,6],[33,7,34,7],[35,6,36,6],[35,7,36,7],[33,1,34,2],[33,3,34,3],[35,1,36,2],[35,3,36,3],[35,4,36,4],[35,5,36,5],[33,4,34,4],[33,5,34,5],[31,1,32,2],[31,3,32,3],[31,4,32,4],[31,5,32,5],[29,1,30,2],[29,3,30,3],[29,4,30,4],[29,5,30,5],[29,6,30,6],[27,6,28,6],[27,7,28,7],[25,1,26,2],[25,3,26,3],[27,1,28,2],[27,3,28,3],[27,4,28,4],[27,5,28,5],[25,4,26,4],[25,5,26,5],[23,1,24,2],[23,3,24,3],[23,4,24,4],[23,5,24,5],[21,1,22,2],[21,3,22,3],[21,4,22,4],[21,5,22,5],[21,6,22,6],[23,6,24,6],[17,1,18,2],[17,3,18,3],[19,1,20,2],[19,3,20,3],[19,4,20,4],[19,5,20,5],[17,4,18,4],[17,5,18,5],[17,6,18,6],[13,1,14,2],[13,3,14,3],[11,1,12,2],[15,1,16,2],[15,3,16,3],[15,4,16,4],[15,5,16,5],[13,4,14,4],[13,5,14,5],[11,3,12,3],[11,4,12,4],[11,5,12,5],[7,1,8,2],[7,3,8,3],[7,4,8,4],[7,5,8,5],[4,1,6,2],[4,3,6,3],[4,4,6,4],[4,5,6,5],[9,1,10,2],[9,3,10,3],[9,4,10,4],[9,5,10,5],[4,20,6,20],[7,6,8,6],[7,7,8,7],[4,15,6,15],[4,16,6,16],[4,17,6,17],[4,18,6,18],[4,14,6,14],[4,19,6,19],[9,6,10,6],[9,7,10,7],[11,6,12,6],[11,7,12,7],[19,6,20,6],[19,7,20,7],[21,7,22,7],[23,7,24,7],[25,6,26,6],[25,7,26,7],[17,7,18,7],[13,6,14,6],[13,7,14,7],[15,6,16,6],[15,7,16,7],[1,6,1,14],[2,6,2,14],[4,10,6,10],[4,11,6,11],[4,12,6,12],[4,13,6,13],[4,6,6,6],[4,7,6,7],[4,8,6,8],[4,9,6,9]]}
[]
[null,"監　様式６号の３　（別表３）",null,null,null,null,"３．　　賃　　金　　支　　払　　集　　計　　表"]
[null,null,null,null,null,"　　　　　　　　（ 臨 時 ・ ア ル バ イ ト ・ 家 族 従 業 員 等 ）","　　　　　　　（ 臨 時 ・ ア ル バ イ ト 等 ）"]
[]
[null,"氏　　　　名",null,"雇用形態","職　　種","生年月日","雇　 入\n年月日","離　 職\n年月日","令和５年４月","令和５年５月","令和５年６月","令和５年７月","令和５年８月","令和５年９月","令和５年１０月","令和５年１１月","令和５年１２月","令和６年１月","令和６年２月","令和６年３月","５年度計"]
[]
[]
[null,null,null,null,null,null,null,null,null,null,null,null,null,null,null,null,null,null,null,null,{"$f":"SUM(I8:T8)","v":0}]
[null,null,null,null,null,null,null,null,null,null,null,null,null,null,null,null,null,null,null,null,{"$f":"SUM(I9:T9)","v":0}]
[null,null,null,null,null,null,null,null,null,null,null,null,null,null,null,null,null,null,null,null,0]
[null,null,null,null,null,null,null,null,null,null,null,null,null,null,null,null,null,null,null,null,0]
[null,null,null,null,null,null,null,null,null,null,null,null,null,null,null,null,null,null,null,null,{"$f":"SUM(I12:T12)","v":0}]
[null,null,null,null,null,null,null,null,null,null,null,null,null,null,null,null,null,null,null,null,0]
[null,null,null,null,null,null,null,null,null,null,null,null,null,null,null,null,null,null,null,null,0]
[null,null,null,null,null,null,null,null,null,null,null,null,null,null,null,null,null,null,null,null,0]
[null,null,null,null,null,null,null,null,null,null,null,null,null,null,null,null,null,null,null,null,0]
[null,null,null,null,null,null,null,null,null,null,null,null,null,null,null,null,null,null,null,null,0]
[null,null,null,null,null,null,null,null,null,null,null,null,null,null,null,null,null,null,null,null,0]
[null,null,null,null,null,null,null,null,null,null,null,null,null,null,null,null,null,null,null,null,0]
[null,null,null,null,null,null,null,null,null,null,null,null,null,null,null,null,null,null,null,null,0]
[null,null,null,null,null,null,null,null,null,null,null,null,null,null,null,null,null,null,null,null,0]
[null,null,null,null,null,null,null,null,null,null,null,null,null,null,null,null,null,null,null,null,0]
[null,null,null,null,null,null,null,null,null,null,null,null,null,null,null,null,null,null,null,null,0]
[null,null,null,null,null,null,null,null,null,null,null,null,null,null,null,null,null,null,null,null,0]
[null,null,null,null,null,null,null,null,null,null,null,null,null,null,null,null,null,null,null,null,0]
[null,null,null,null,null,null,null,null,null,null,null,null,null,null,null,null,null,null,null,null,0]
[null,null,null,null,null,null,null,null,null,null,null,null,null,null,null,null,null,null,null,null,0]
[null,null,null,null,null,null,null,null,null,null,null,null,null,null,null,null,null,null,null,null,0]
[null,null,null,null,null,null,null,null,null,null,null,null,null,null,null,null,null,null,null,null,0]
[null,null,null,null,null,null,null,null,null,null,null,null,null,null,null,null,null,null,null,null,0]
[null,null,null,null,null,null,null,null,null,null,null,null,null,null,null,null,null,null,null,null,0]
[null,null,null,null,null,null,null,null,null,null,null,null,null,null,null,null,null,null,null,null,0]
[null,null,null,null,null,null,null,null,null,null,null,null,null,null,null,null,null,null,null,null,0]
[null,null,null,null,null,null,null,null,null,null,null,null,null,null,null,null,null,null,null,null,0]
[null,null,null,null,null,null,null,null,null,null,null,null,null,null,null,null,null,null,null,null,0]
[null,null,null,null,null,null,null,null,null,null,null,null,null,null,null,null,null,null,null,null,0]
[null,null,null,null,null,null,null,null,null,null,null,null,null,null,null,null,null,null,null,null,0]
[null,null,null,null,null,null,null,null,null,null,null,null,null,null,null,null,null,null,null,null,0]
[null,null,null,null,null,null,null,null,null,null,null,null,null,null,null,null,null,null,null,null,0]
[null,null,null,null,null,null,null,null,null,null,null,null,null,null,null,null,null,null,null,null,0]
[null,null,null,null,null,null,null,null,null,null,null,null,null,null,null,null,null,null,null,null,0]
[null,null,null,null,null,null,null,null,null,null,null,null,null,null,null,null,null,null,null,null,0]
[null,null,null,null,null,null,null,null,null,null,null,null,null,null,null,null,null,null,null,null,0]
[null,null,null,null,null,null,null,null,null,null,null,null,null,null,null,null,null,null,null,null,0]
[null,null,null,null,null,null,null,null,null,null,null,null,null,null,null,null,null,null,null,null,0]
[null,null,null,null,null,null,null,null,null,null,null,null,null,null,null,null,null,null,null,null,0]
[null,null,null,null,null,null,null,null,null,null,null,null,null,null,null,null,null,null,null,null,0]
[null,"合　　　　　　　　　　計",null,null,null,null,null,null,{"$f":"SUM(I8+I10+I12+I14+I16+I18+I20+I22+I24+I26+I28+I30+I32+I34+I36+I38+I40+I42+I44+I46)","v":0},{"$f":"SUM(J8+J10+J12+J14+J16+J18+J20+J22+J24+J26+J28+J30+J32+J34+J36+J38+J40+J42+J44+J46)","v":0},0,0,0,0,0,0,0,0,0,0,0]
[null,null,null,null,null,null,null,null,{"$f":"SUM(I9+I11+I13+I15+I17+I19+I21+I23+I25+I27+I29+I31+I33+I35+I37+I39+I41+I43+I45+I47)","v":0},{"$f":"SUM(J9+J11+J13+J15+J17+J19+J21+J23+J25+J27+J29+J31+J33+J35+J37+J39+J41+J43+J45+J47)","v":0},0,0,0,0,0,0,0,0,0,0,0]
[null,null,null,null,null,null,null,null,{"$f":"SUM(I48:I49)","v":0},{"$f":"SUM(J48:J49)","v":0},0,0,0,0,0,0,0,0,0,0,{"$f":"SUM(I50:T50)","v":0}]
[null,"【 注意 】","１　この表は、雇用保険適用者以外の労働者すべてについて、賃金台帳に基づいて作成してください。"]
[null,"臨時","２　賃金額は、超過勤務手当、通勤手当等を含む賃金総額（源泉所得税等を控除する前の金額）を記載してください。"]
[null,"アルバイト","３　各月の賃金額は、原則として支払内容月で作成してください。"]
[null,"その他","４　賞与、燃料手当、臨時手当などの手当を支給した場合は、該当月欄の上段に賃金額を、下段に賞与等の額を記入してください。（二段書きしてください。）　　　",null,null,null,null,null,null,null,null,null,null,null,null,null,null,null,"　　記載例　　","３５０，０００　←　賃金額"]
[null,null,null,null,null,null,null,null,null,null,null,null,null,null,null,null,null,null,null,"２００，０００　←　賞与等"]